Department Family,Entity,Date of Payment,GL Description,Expense Area,Supplier,Voluntary,SME Class,Sole Trader,Transaction number,Purchasing Item Text,Postal Code,Amount in Sterling,Grant?
MHCLG,PINS,02/07/2018,Agency Staff,ICT Digital Services,HAYS SPECIALIST RECRUITMENT LTD,,Large,,5106237492,Business Continuity Resource,NW1 2AF,"3,132.00",
MHCLG,PINS,02/07/2018,IT - Software Maintenance,ICT Digital Services,SOFTWARE BOX LTD,,Large,,5106237472,Licence and support renewal,YO61 1ET,"18,976.33",
MHCLG,PINS,02/07/2018,IT SUPPORT,TR Digital Transformation,HAYS SPECIALIST RECRUITMENT LTD,,Large,,5106237448,IT Business Analyst Resource,NW1 2AF,"3,197.28",
MHCLG,PINS,02/07/2018,NSI Fees & Expenses,NSI Fees Planning,ALISON ROLAND,,Not assigned,,2100062068,,BD20 7BG,"8,400.00",
MHCLG,PINS,02/07/2018,NSI Fees & Expenses,NSI Fees Planning,FITZSIMON PLANNING & DEVELOPMENT,,Micro,,2100062070,,CH7 5NL,"1,820.00",
MHCLG,PINS,02/07/2018,NSI Fees & Expenses,NSI Fees Planning,JDA DEVELOPMENT & PLANNING SERVICE,,Micro,,2100062072,,TA14 6PT,"1,170.00",
MHCLG,PINS,02/07/2018,NSI Fees & Expenses,NSI Expenses Planning,JDA DEVELOPMENT & PLANNING SERVICE,,Micro,,2100062072,,TA14 6PT,105.45,
MHCLG,PINS,02/07/2018,Specialist Technical Support,Human Resources,HAYS SPECIALIST RECRUITMENT LTD,,Large,,2100062134,Business Continuity Resource,NW1 2AF,"-3,132.00",
MHCLG,PINS,02/07/2018,Specialist Technical Support,Human Resources,HAYS SPECIALIST RECRUITMENT LTD,,Large,,5106237111,Business Continuity Resource,NW1 2AF,"3,132.00",
MHCLG,PINS,03/07/2018,Advertising,ROW,TMP (UK) LIMITED,,Large,,5106237532,Statutory Advertising - ROW,W1T 7RQ,921.47,
MHCLG,PINS,03/07/2018,Advertising,Wales Director,TMP (UK) LIMITED,,Large,,5106237537,Statutory Advertising - Wales,W1T 7RQ,"1,824.10",
MHCLG,PINS,03/07/2018,Agency Staff,Planning Casework Operations,REED SPECIALIST RECRUITMENT LTD,,Large,,5106237506,CLASSIC CASEWORK - ES,SW20 0BA,679.32,
MHCLG,PINS,03/07/2018,Agency Staff,Planning Casework Operations,REED SPECIALIST RECRUITMENT LTD,,Large,,5106237507,CLASSIC CASEWORK - CM,SW20 0BA,640.08,
MHCLG,PINS,03/07/2018,Agency Staff,TR Digital Transformation,REED SPECIALIST RECRUITMENT LTD,,Large,,5106237523,Build Suport,SW20 0BA,"1,012.96",
MHCLG,PINS,03/07/2018,Agency Staff,Governance & Strategic Support,REED SPECIALIST RECRUITMENT LTD,,Large,,5106237539,Agency Staff DB,SW20 0BA,824.86,
MHCLG,PINS,03/07/2018,Agency Staff,TR People,REED SPECIALIST RECRUITMENT LTD,,Large,,5106237540,AO HR GDPR MC,SW20 0BA,558.55,
MHCLG,PINS,03/07/2018,Agency Staff,ROW,REED SPECIALIST RECRUITMENT LTD,,Large,,5106237541,Agency AA ROW,SW20 0BA,389.96,
MHCLG,PINS,03/07/2018,Agency Staff,"Policy, Knowledge & Quality",REED SPECIALIST RECRUITMENT LTD,,Large,,5106237542,Agency Staff for Library,SW20 0BA,490.42,
MHCLG,PINS,03/07/2018,Agency Staff,TR People,REED SPECIALIST RECRUITMENT LTD,,Large,,5106237543,AO HR ADVICE CW,SW20 0BA,535.91,
MHCLG,PINS,03/07/2018,Agency Staff,Transformation Prog Management Office,REED SPECIALIST RECRUITMENT LTD,,Large,,5106237544,Programme Support Role,SW20 0BA,941.72,
MHCLG,PINS,03/07/2018,Agency Staff,Transformation Prog Management Office,REED SPECIALIST RECRUITMENT LTD,,Large,,5106237545,Programme Support role SB,SW20 0BA,897.18,
MHCLG,PINS,03/07/2018,Agency Staff,Enforcements,REED SPECIALIST RECRUITMENT LTD,,Large,,5106237548,Agency Staff RT,SW20 0BA,402.34,
MHCLG,PINS,03/07/2018,IT SUPPORT,TR Digital Transformation,HAYS SPECIALIST RECRUITMENT LTD,,Large,,5106237449,Commercial Digital Category Mgr,NW1 2AF,"3,497.28",
MHCLG,PINS,03/07/2018,IT SUPPORT,ICT Digital Services,THIRTY FOUR FEET LTD,,Micro,,5106237513,IT tester services - contract extension,NP15 1QB,"2,100.00",
MHCLG,PINS,03/07/2018,Legal Fees,Wales Director,GOVERNMENT LEGAL DEPT,,Public Bodies,,5106236903,Legal Fees(2017-18),WC2B 4TS,"3,582.96",
MHCLG,PINS,03/07/2018,Vehicle hire,Inspector Costs,ENTERPRISE RENT-A-CAR,,Large,,5106237536,Vehicle hire,TW20 9FB,"13,685.27",
MHCLG,PINS,04/07/2018,Agency Staff,ICT Digital Services,HAYS SPECIALIST RECRUITMENT LTD,,Large,,5106237570,Business Continuity Resourcse,NW1 2AF,"3,132.00",
MHCLG,PINS,04/07/2018,Agency Staff,Planning Casework Operations,REED SPECIALIST RECRUITMENT LTD,,Large,,5106237575,Agency AO MR,SW20 0BA,505.72,
MHCLG,PINS,04/07/2018,Agency Staff,Planning Casework Operations,REED SPECIALIST RECRUITMENT LTD,,Large,,5106237577,AO AGENCY STAFF JJF,SW20 0BA,350.99,
MHCLG,PINS,04/07/2018,Agency Staff,Planning Casework Operations,REED SPECIALIST RECRUITMENT LTD,,Large,,5106237580,AO AGENCY STAFF EJ,SW20 0BA,558.55,
MHCLG,PINS,04/07/2018,Agency Staff,Planning Casework Operations,REED SPECIALIST RECRUITMENT LTD,,Large,,5106237582,Agency AO JM,SW20 0BA,430.24,
MHCLG,PINS,04/07/2018,Agency Staff,Planning Casework Operations,REED SPECIALIST RECRUITMENT LTD,,Large,,5106237583,Agency AO CN,SW20 0BA,441.56,
MHCLG,PINS,04/07/2018,IT SUPPORT,TR People,HAYS SPECIALIST RECRUITMENT LTD,,Large,,2100062073,HR BP - SL,NW1 2AF,"-3,285.72",
MHCLG,PINS,04/07/2018,IT SUPPORT,TR People,HAYS SPECIALIST RECRUITMENT LTD,,Large,,5106237488,HR BP - SL,NW1 2AF,"3,285.72",
MHCLG,PINS,04/07/2018,NSI Fees & Expenses,NSI Fees Planning,4 PLANNING DELIVERY LTD,,Micro,,2100062131,,S8 9BG,"1,036.00",
MHCLG,PINS,04/07/2018,NSI Fees & Expenses,NSI Expenses Planning,4 PLANNING DELIVERY LTD,,Micro,,2100062131,,S8 9BG,250.43,
MHCLG,PINS,04/07/2018,NSI Fees & Expenses,NSI Fees Planning,CARBROOK ASSOCIATES,,Micro,,2100062172,,M32 8QU,"1,400.00",
MHCLG,PINS,04/07/2018,NSI Fees & Expenses,NSI Expenses Planning,CARBROOK ASSOCIATES,,Micro,,2100062172,,M32 8QU,57.15,
MHCLG,PINS,04/07/2018,NSI Fees & Expenses,NSI Fees Planning,MARTIN ANDREWS PLANNING CONSULTANCY,,Micro,,2100062129,,BH15 1HH,"2,184.00",
MHCLG,PINS,04/07/2018,NSI Fees & Expenses,NSI Expenses Planning,MARTIN ANDREWS PLANNING CONSULTANCY,,Micro,,2100062129,,BH15 1HH,103.86,
MHCLG,PINS,04/07/2018,NSI Fees & Expenses,NSI Fees Planning,SANDRA PRAIL LTD,,Micro,,2100062132,,BN16 1RX,705.60,
MHCLG,PINS,04/07/2018,NSI Fees & Expenses,NSI Expenses Planning,SANDRA PRAIL LTD,,Micro,,2100062132,,BN16 1RX,90.00,
MHCLG,PINS,04/07/2018,NSI Fees & Expenses,NSI Fees Planning,SANDRA PRAIL LTD,,Micro,,2100062135,,BN16 1RX,"1,444.80",
MHCLG,PINS,04/07/2018,NSI Fees & Expenses,NSI Expenses Planning,SANDRA PRAIL LTD,,Micro,,2100062135,,BN16 1RX,144.36,
MHCLG,PINS,04/07/2018,NSI Fees & Expenses,NSI Fees Planning,STAR PLANNING & DEVELOPMENT LTD,,Micro,,2100062130,,B14 6BX,"1,344.00",
MHCLG,PINS,04/07/2018,NSI Fees & Expenses,NSI Expenses Planning,STAR PLANNING & DEVELOPMENT LTD,,Micro,,2100062130,,B14 6BX,138.96,
MHCLG,PINS,04/07/2018,Office machinery consumables,Business Support,X M A LIMITED,,Data Not Provided,,5106237572,Office Machine Consumables,NG11 7EP,433.44,
MHCLG,PINS,04/07/2018,Payroll Services,Human Resources,CGI IT UK LIMITED,,Large,,5106237564,Payroll Service 2018/19,CF31 9AP,"3,325.00",
MHCLG,PINS,04/07/2018,Training,Wales Director,ROYAL TOWN PLANNING INSTITUTE,,Medium,,5106237579,RTPI 10580,EC3R 8DL,260.00,
MHCLG,PINS,04/07/2018,TSOL Adverse Costs,"Policy, Knowledge & Quality",GOVERNMENT LEGAL DEPARTMENT,,Public Bodies,,2100062177,,WC2B 4TS,"19,218.00",
MHCLG,PINS,05/07/2018,Agency Staff,"Finance, Commercial & Performance",REED SPECIALIST RECRUITMENT LTD,,Large,,5106237602,EO For Finance,SW20 0BA,476.40,
MHCLG,PINS,05/07/2018,Conferences and Meeting Facilities,Planning Casework Operations,CALDER CONFERENCES LIMITED,,Small,,5106237594,NSI Kiosk Briefing,LS16 6RF,"2,550.00",
MHCLG,PINS,05/07/2018,NSI Fees & Expenses,NSI Fees Planning,DESIGN 2,,Micro,,2100062174,,PO20 0HX,"1,344.00",
MHCLG,PINS,05/07/2018,NSI Fees & Expenses,NSI Expenses Planning,DESIGN 2,,Micro,,2100062174,,PO20 0HX,121.68,
MHCLG,PINS,05/07/2018,NSI Fees & Expenses,NSI Fees Planning,GARY DEANE ASSOCIATES LIMITED,,Micro,,2100062180,,M33 6RG,"1,512.00",
MHCLG,PINS,05/07/2018,NSI Fees & Expenses,NSI Expenses Planning,GARY DEANE ASSOCIATES LIMITED,,Micro,,2100062180,,M33 6RG,102.06,
MHCLG,PINS,05/07/2018,NSI Fees & Expenses,NSI Fees Planning,H J L PLANNING,,Micro,,2100062226,,CM3 1HZ,280.00,
MHCLG,PINS,05/07/2018,Training,TR People,HOWARD DAVIS CONSULTANCY LTD,,Micro,,5106237589,Exec Coaching - TT,GL20 7SL,"1,400.00",
MHCLG,PINS,05/07/2018,TSOL Adverse Costs,"Policy, Knowledge & Quality",GOVERNMENT LEGAL DEPARTMENT,,Public Bodies,,2100062179,,WC2B 4TS,"10,500.00",
MHCLG,PINS,06/07/2018,Agency Staff,"Finance, Commercial & Performance",REED SPECIALIST RECRUITMENT LTD,,Large,,5106237353,EO For Finance,SW20 0BA,840.67,
MHCLG,PINS,06/07/2018,Office Supplies,Business Support,BANNER BUSINESS SUPPLIES LTD,,Large,,5106237666,Office Stationery 18-19,S9 1XU,156.47,
MHCLG,PINS,06/07/2018,Office Supplies,Business Support,BANNER BUSINESS SUPPLIES LTD,,Large,,5106237666,Paper 18-19,S9 1XU,341.36,
MHCLG,PINS,06/07/2018,Specialist Technical Support,Research and Development,RAINMAKER SOLUTIONS LTD,,Medium,,5106237591,ODT Tools Analysis V006,MK18 1HD,"2,520.00",
MHCLG,PINS,06/07/2018,Specialist Technical Support,Research and Development,RAINMAKER SOLUTIONS LTD,,Medium,,5106237597,ODT Tools Analysis V006,MK18 1HD,"3,255.00",
MHCLG,PINS,09/07/2018,Agency Staff,TR People,HAYS SPECIALIST RECRUITMENT LTD,,Large,,5106237697,HR BP - SL,NW1 2AF,"2,628.58",
MHCLG,PINS,09/07/2018,EXP � PURCHASE OF GOODS /SERVICES R & D,Research and Development,RAINMAKER SOLUTIONS LTD,,Medium,,5106237593,ODT Alpha(variation 007),MK18 1HD,"100,000.00",
MHCLG,PINS,09/07/2018,IT SUPPORT,TR Digital Transformation,AIIMI LTD,,Medium,,5106237683,Horizon Stability Patching Variation 2,MK9 1JL,288.79,
MHCLG,PINS,09/07/2018,IT SUPPORT,TR Organisational Agility,ALLEN LANE LTD,,Medium,,5106237592,Finance Planning Business Partner resour,SW1Y 6RJ,"5,484.29",
MHCLG,PINS,09/07/2018,IT SUPPORT,TR People,HAYS SPECIALIST RECRUITMENT LTD,,Large,,2100062330,HR BP - SL,NW1 2AF,"-3,285.72",
MHCLG,PINS,09/07/2018,IT SUPPORT,TR People,HAYS SPECIALIST RECRUITMENT LTD,,Large,,5106237515,HR BP - SL,NW1 2AF,"3,285.72",
MHCLG,PINS,09/07/2018,IT SUPPORT,TR Digital Transformation,HAYS SPECIALIST RECRUITMENT LTD,,Large,,5106237630,IT Business Analyst Resource,NW1 2AF,"3,197.28",
MHCLG,PINS,09/07/2018,Office machinery consumables,Business Support,X M A LIMITED,,Data Not Provided,,5106237638,Office Machine Consumables,NG11 7EP,"1,362.00",
MHCLG,PINS,09/07/2018,Specialist Technical Support,Transformation Prog Management Office,METHODS PROFESSIONAL SERVICES,,Small,,5106237691,Programme Management ,EC1A 4EN,"23,940.00",
MHCLG,PINS,09/07/2018,Training,TR People,KORN FERRY HAY GROUP LTD,,Large,,5106237684,Top Team Intervention,SW1Y 6QB,"11,737.00",
MHCLG,PINS,09/07/2018,Translations,Wales Director,TROSOL CYFYNGEDIG,,Small,,5106237670,PINS Wales Translations Costs 2018-19,CF14 5GH,300.00,
MHCLG,PINS,09/07/2018,Translations,Wales Director,TROSOL CYFYNGEDIG,,Small,,5106237671,PINS Wales Translations Costs 2018-19,CF14 5GH,300.00,
MHCLG,PINS,09/07/2018,Translations,Wales Director,TROSOL CYFYNGEDIG,,Small,,5106237672,PINS Wales Translations Costs 2018-19,CF14 5GH,"2,964.82",
MHCLG,PINS,09/07/2018,Translations,Wales Director,TROSOL CYFYNGEDIG,,Small,,5106237674,PINS Wales Translations Costs 2018-19,CF14 5GH,"1,963.94",
MHCLG,PINS,09/07/2018,Web Services,TR Digital Transformation,PHOENIX SOFTWARE,,Medium,,5106237695,Microsoft Enterprise Mobility + Security,YO42 1NS,"1,309.04",
MHCLG,PINS,10/07/2018,Agency Staff,TR Digital Transformation,REED SPECIALIST RECRUITMENT LTD,,Large,,5106237715,Build Suport,SW20 0BA,"1,012.96",
MHCLG,PINS,10/07/2018,Agency Staff,Planning Casework Operations,REED SPECIALIST RECRUITMENT LTD,,Large,,5106237718,Agency AO JM,SW20 0BA,407.59,
MHCLG,PINS,10/07/2018,Agency Staff,Planning Casework Operations,REED SPECIALIST RECRUITMENT LTD,,Large,,5106237719,Agency AO MR,SW20 0BA,554.78,
MHCLG,PINS,10/07/2018,Agency Staff,Planning Casework Operations,REED SPECIALIST RECRUITMENT LTD,,Large,,5106237721,AO AGENCY STAFF EJ,SW20 0BA,566.10,
MHCLG,PINS,10/07/2018,Agency Staff,Transformation Prog Management Office,REED SPECIALIST RECRUITMENT LTD,,Large,,5106237722,Programme Support role SB,SW20 0BA,935.36,
MHCLG,PINS,10/07/2018,Agency Staff,Enforcements,REED SPECIALIST RECRUITMENT LTD,,Large,,5106237723,Agency Staff RT,SW20 0BA,676.66,
MHCLG,PINS,10/07/2018,Agency Staff,"Policy, Knowledge & Quality",REED SPECIALIST RECRUITMENT LTD,,Large,,5106237724,Agency Staff for Library,SW20 0BA,364.78,
MHCLG,PINS,10/07/2018,Agency Staff,Planning Casework Operations,REED SPECIALIST RECRUITMENT LTD,,Large,,5106237725,AO AGENCY STAFF JJF,SW20 0BA,566.10,
MHCLG,PINS,10/07/2018,Agency Staff,Governance & Strategic Support,REED SPECIALIST RECRUITMENT LTD,,Large,,5106237726,Agency Staff DB,SW20 0BA,852.35,
MHCLG,PINS,10/07/2018,Agency Staff,Transformation Prog Management Office,REED SPECIALIST RECRUITMENT LTD,,Large,,5106237727,Programme Support Role,SW20 0BA,878.10,
MHCLG,PINS,10/07/2018,NSI Fees & Expenses,NSI Fees Planning,DESIGN 2,,Micro,,2100062334,,PO20 0HX,"1,344.00",
MHCLG,PINS,10/07/2018,NSI Fees & Expenses,NSI Expenses Planning,DESIGN 2,,Micro,,2100062334,,PO20 0HX,123.30,
MHCLG,PINS,10/07/2018,NSI Fees & Expenses,NSI Fees Planning,H J L PLANNING,,Micro,,2100062335,,CM3 1HZ,"1,400.00",
MHCLG,PINS,10/07/2018,NSI Fees & Expenses,NSI Expenses Planning,H J L PLANNING,,Micro,,2100062335,,CM3 1HZ,42.75,
MHCLG,PINS,10/07/2018,NSI Fees & Expenses,NSI Fees Planning,W S C WADRUP INDEPENDENT CONS LTD,,Micro,,2100062289,,MK43 7DU,"8,064.00",
MHCLG,PINS,10/07/2018,NSI Fees & Expenses,NSI Expenses Planning,W S C WADRUP INDEPENDENT CONS LTD,,Micro,,2100062289,,MK43 7DU,68.54,
MHCLG,PINS,10/07/2018,Office machinery consumables,Business Support,X M A LIMITED,,Data Not Provided,,5106237707,Office Machine Consumables 18-19,NG11 7EP,976.44,
MHCLG,PINS,10/07/2018,Office machinery consumables,Business Support,X M A LIMITED,,Data Not Provided,,5106237711,Office Machine Consumables 18-19,NG11 7EP,"1,362.00",
MHCLG,PINS,11/07/2018,Agency Staff,TR People,HAYS SPECIALIST RECRUITMENT LTD,,Large,,5106237745,HR BP - SL,NW1 2AF,"3,285.72",
MHCLG,PINS,11/07/2018,Agency Staff,Inspector Development & Support Team,REED SPECIALIST RECRUITMENT LTD,,Large,,5106237756,Temp staff for IDST,SW20 0BA,454.49,
MHCLG,PINS,11/07/2018,Agency Staff,TR People,REED SPECIALIST RECRUITMENT LTD,,Large,,5106237757,AO HR ADVICE CW,SW20 0BA,543.46,
MHCLG,PINS,11/07/2018,Agency Staff,TR People,REED SPECIALIST RECRUITMENT LTD,,Large,,5106237758,AO HR GDPR MC,SW20 0BA,452.88,
MHCLG,PINS,11/07/2018,Agency Staff,"Finance, Commercial & Performance",REED SPECIALIST RECRUITMENT LTD,,Large,,5106237759,EO For Finance,SW20 0BA,714.60,
MHCLG,PINS,11/07/2018,IT - Service Contracts,ICT Digital Services,ZSAH LTD,,Small,,5106237755,Extension of PINS contract 17/12/710,SW7 3HE,"4,098.26",
MHCLG,PINS,11/07/2018,IT - Software Maintenance,ICT Digital Services,METHODS PROFESSIONAL SERVICES,,Small,,5106237713,DCS review business analyst,EC1A 4EN,"9,697.50",
MHCLG,PINS,11/07/2018,IT SUPPORT,ICT Digital Services,THIRTY FOUR FEET LTD,,Micro,,5106237708,IT tester services,NP15 1QB,"2,100.00",
MHCLG,PINS,11/07/2018,NSI Fees & Expenses,NSI Expenses Planning,ALISON ROLAND,,Not assigned,,2100062373,,BD20 7BG,"1,552.90",
MHCLG,PINS,11/07/2018,Translations,Wales Director,TROSOL CYFYNGEDIG,,Small,,5106237749,PINS Wales Translations Costs 2018-19,CF14 5GH,"2,554.99",
MHCLG,PINS,11/07/2018,Translations,Infrastructure Planning,TROSOL CYFYNGEDIG,,Small,,5106237753,Welsh Translation Services NID,CF14 5GH,"1,237.74",
MHCLG,PINS,11/07/2018,Travel and Subsistence Account,Inspector Costs,REDFERN TRAVEL LIMITED,,Small,,5106237764,AIR TRAVEL,BD1 3AZ,308.28,
MHCLG,PINS,11/07/2018,Travel and Subsistence Account,Inspector Costs,REDFERN TRAVEL LIMITED,,Small,,5106237764,BILLBACK FEE,BD1 3AZ,24.00,
MHCLG,PINS,11/07/2018,Travel and Subsistence Account,Inspector Costs,REDFERN TRAVEL LIMITED,,Small,,5106237764,FERRY TRAVEL,BD1 3AZ,71.91,
MHCLG,PINS,11/07/2018,Travel and Subsistence Account,Inspector Costs,REDFERN TRAVEL LIMITED,,Small,,5106237764,RAIL TRAVEL,BD1 3AZ,"29,998.00",
MHCLG,PINS,11/07/2018,Travel and Subsistence Account,Inspector Costs,REDFERN TRAVEL LIMITED,,Small,,5106237764,HOTEL FEE,BD1 3AZ,230.69,
MHCLG,PINS,11/07/2018,Travel and Subsistence Account,Inspector Costs,REDFERN TRAVEL LIMITED,,Small,,5106237764,HOTELS,BD1 3AZ,"49,455.63",
MHCLG,PINS,11/07/2018,Travel and Subsistence Account,Inspector Costs,REDFERN TRAVEL LIMITED,,Small,,5106237764,WEB TRANSACTION,BD1 3AZ,672.71,
MHCLG,PINS,12/07/2018,Agency Staff,Planning Casework Operations,REED SPECIALIST RECRUITMENT LTD,,Large,,5106237776,CLASSIC CASEWORK - ES,SW20 0BA,642.60,
MHCLG,PINS,12/07/2018,Agency Staff,Planning Casework Operations,REED SPECIALIST RECRUITMENT LTD,,Large,,5106237777,CLASSIC CASEWORK - KR,SW20 0BA,284.58,
MHCLG,PINS,12/07/2018,IT SUPPORT,ICT Digital Services,AGILE SOLUTIONS LTD,,Large,,5106237780,Data Mapping,G2 2NR,"4,500.00",
MHCLG,PINS,12/07/2018,IT SUPPORT,ICT Digital Services,AGILE SOLUTIONS LTD,,Large,,5106237780,GDPR Consultant,G2 2NR,750.00,
MHCLG,PINS,12/07/2018,IT SUPPORT,ICT Digital Services,AGILE SOLUTIONS LTD,,Large,,5106237780,GDPR Practitioner,G2 2NR,"1,110.00",
MHCLG,PINS,12/07/2018,Legal Fees,Wales Director,GOVERNMENT LEGAL DEPT,,Public Bodies,,5106237606,Legal Fees(2017-18),WC2B 4TS,"3,761.04",
MHCLG,PINS,12/07/2018,Mobile phone costs,ICT Digital Services,GAMMA TELECOM LTD,,Large,,5106237783,Mobile telephony services 2018-19,EC4M 7RD,"6,559.28",
MHCLG,PINS,12/07/2018,NSI Fees & Expenses,NSI Fees Planning,CHEC PLANNING LTD,,Micro,,2100062404,,CB6 3PG,"2,352.00",
MHCLG,PINS,12/07/2018,NSI Fees & Expenses,NSI Expenses Planning,CHEC PLANNING LTD,,Micro,,2100062404,,CB6 3PG,102.96,
MHCLG,PINS,12/07/2018,NSI Fees & Expenses,NSI Fees Planning,D C PLANNING LTD,,Data Not Provided,,2100062405,,BH14 8AL,"2,688.00",
MHCLG,PINS,12/07/2018,NSI Fees & Expenses,NSI Expenses Planning,D C PLANNING LTD,,Data Not Provided,,2100062405,,BH14 8AL,282.83,
MHCLG,PINS,12/07/2018,NSI Fees & Expenses,NSI Fees Planning,ELIZABETH LAWRENCE LTD,,Micro,,2100062406,,RH20 3LY,"4,704.00",
MHCLG,PINS,12/07/2018,NSI Fees & Expenses,NSI Expenses Planning,ELIZABETH LAWRENCE LTD,,Micro,,2100062406,,RH20 3LY,145.80,
MHCLG,PINS,12/07/2018,NSI Fees & Expenses,NSI Fees Planning,SANDRA PRAIL LTD,,Micro,,2100062399,,BN16 1RX,"1,276.80",
MHCLG,PINS,12/07/2018,NSI Fees & Expenses,NSI Expenses Planning,SANDRA PRAIL LTD,,Micro,,2100062399,,BN16 1RX,90.00,
MHCLG,PINS,12/07/2018,Office machinery consumables,Business Support,X M A LIMITED,,Data Not Provided,,5106237790,Office Machine Consumables 18-19,NG11 7EP,346.75,
MHCLG,PINS,12/07/2018,Office machinery consumables,Business Support,X M A LIMITED,,Data Not Provided,,5106237791,Office Machine Consumables 18-19,NG11 7EP,381.00,
MHCLG,PINS,12/07/2018,Office machinery consumables,Business Support,X M A LIMITED,,Data Not Provided,,5106237792,Office Machine Consumables 18-19,NG11 7EP,953.64,
MHCLG,PINS,12/07/2018,Office machinery consumables,Business Support,X M A LIMITED,,Data Not Provided,,5106237793,Office Machine Consumables 18-19,NG11 7EP,391.20,
MHCLG,PINS,12/07/2018,Office Supplies,Business Support,BANNER BUSINESS SUPPLIES LTD,,Large,,5106237796,Office Stationery 18-19,S9 1XU,41.72,
MHCLG,PINS,12/07/2018,Office Supplies,Business Support,BANNER BUSINESS SUPPLIES LTD,,Large,,5106237796,Paper 18-19,S9 1XU,258.26,
MHCLG,PINS,16/07/2018,Agency Staff,"Finance, Commercial & Performance",REED SPECIALIST RECRUITMENT LTD,,Large,,5106237836,EO For Finance,SW20 0BA,828.58,
MHCLG,PINS,16/07/2018,Technical Aids for the disabled,Human Resources,HEALTH  MANAGEMENT LTD,,Medium,,2100062531,Health Managmt WEF 1/12/17,BN8 5NN,-755.40,
MHCLG,PINS,16/07/2018,Technical Aids for the disabled,Human Resources,HEALTH  MANAGEMENT LTD,,Medium,,5106237814,Health Managmt WEF 1/12/17,BN8 5NN,755.40,
MHCLG,PINS,17/07/2018,Agency Staff,TR People,REED SPECIALIST RECRUITMENT LTD,,Large,,5106237852,AO HR ADVICE CW,SW20 0BA,426.47,
MHCLG,PINS,17/07/2018,Agency Staff,TR People,REED SPECIALIST RECRUITMENT LTD,,Large,,5106237854,AO HR GDPR MC,SW20 0BA,452.88,
MHCLG,PINS,17/07/2018,Agency Staff,Inspector Development & Support Team,REED SPECIALIST RECRUITMENT LTD,,Large,,5106237856,Temp staff for IDST,SW20 0BA,462.32,
MHCLG,PINS,17/07/2018,Agency Staff,TR Digital Transformation,REED SPECIALIST RECRUITMENT LTD,,Large,,5106237857,Build Suport,SW20 0BA,"1,012.96",
MHCLG,PINS,17/07/2018,Agency Staff,Planning Casework Operations,REED SPECIALIST RECRUITMENT LTD,,Large,,5106237864,CLASSIC CASEWORK - CM,SW20 0BA,685.80,
MHCLG,PINS,17/07/2018,Agency Staff,Planning Casework Operations,REED SPECIALIST RECRUITMENT LTD,,Large,,5106237865,CLASSIC CASEWORK - KR,SW20 0BA,679.32,
MHCLG,PINS,17/07/2018,Agency Staff,Planning Casework Operations,REED SPECIALIST RECRUITMENT LTD,,Large,,5106237866,CLASSIC CASEWORK - ES,SW20 0BA,523.26,
MHCLG,PINS,17/07/2018,Agency Staff,Governance & Strategic Support,REED SPECIALIST RECRUITMENT LTD,,Large,,5106237882,Agency Staff DB,SW20 0BA,824.86,
MHCLG,PINS,17/07/2018,Agency Staff,Transformation Prog Management Office,REED SPECIALIST RECRUITMENT LTD,,Large,,5106237883,Programme Support role SB,SW20 0BA,967.18,
MHCLG,PINS,17/07/2018,Agency Staff,Transformation Prog Management Office,REED SPECIALIST RECRUITMENT LTD,,Large,,5106237884,Programme Support Role,SW20 0BA,954.46,
MHCLG,PINS,17/07/2018,Catering,TR People,PARSNIP MASH LTD,,Small,,5106237880,Training,BS8 3LJ,"6,924.99",
MHCLG,PINS,17/07/2018,IT SUPPORT,ICT Digital Services,AIIMI LTD,,Medium,,5106237585,Horizon transition to Azure Cloud,MK9 1JL,"5,040.00",
MHCLG,PINS,17/07/2018,IT SUPPORT,TR Digital Transformation,AIIMI LTD,,Medium,,5106237586,Horizon Stability Patching Variation 2,MK9 1JL,"1,260.00",
MHCLG,PINS,17/07/2018,IT SUPPORT,ICT Digital Services,THIRTY FOUR FEET LTD,,Micro,,5106237832,IT tester services - contract extension,NP15 1QB,"2,100.00",
MHCLG,PINS,17/07/2018,Office Supplies,Business Support,BANNER BUSINESS SUPPLIES LTD,,Large,,5106237863,Office Stationery 17-18,S9 1XU,141.49,
MHCLG,PINS,17/07/2018,Office Supplies,Business Support,BANNER BUSINESS SUPPLIES LTD,,Large,,5106237863,Paper 17-18,S9 1XU,121.07,
MHCLG,PINS,17/07/2018,Training,TR People,KORN FERRY HAY GROUP LTD,,Large,,5106237869,Insights Discovery Major Casework,SW1Y 6QB,"13,930.00",
MHCLG,PINS,18/07/2018,Agency Staff,"Policy, Knowledge & Quality",REED SPECIALIST RECRUITMENT LTD,,Large,,5106237855,Agency Staff for Library,SW20 0BA,551.21,
MHCLG,PINS,18/07/2018,Agency Staff,Enforcements,REED SPECIALIST RECRUITMENT LTD,,Large,,5106237859,Agency Staff RT,SW20 0BA,603.50,
MHCLG,PINS,18/07/2018,Agency Staff,Planning Casework Operations,REED SPECIALIST RECRUITMENT LTD,,Large,,5106237896,AO AGENCY STAFF EJ,SW20 0BA,551.00,
MHCLG,PINS,18/07/2018,Agency Staff,Planning Casework Operations,REED SPECIALIST RECRUITMENT LTD,,Large,,5106237897,Agency AO MR,SW20 0BA,547.24,
MHCLG,PINS,18/07/2018,Agency Staff,Planning Casework Operations,REED SPECIALIST RECRUITMENT LTD,,Large,,5106237898,Agency AO JM,SW20 0BA,554.78,
MHCLG,PINS,18/07/2018,Agency Staff,Planning Casework Operations,REED SPECIALIST RECRUITMENT LTD,,Large,,5106237899,AO AGENCY STAFF JJF,SW20 0BA,490.62,
MHCLG,PINS,18/07/2018,IT SUPPORT,ICT Digital Services,AGILE SOLUTIONS LTD,,Large,,5106237900,GDPR Practitioner,G2 2NR,"1,110.00",
MHCLG,PINS,18/07/2018,NSI Fees & Expenses,NSI Fees Planning,4 PLANNING DELIVERY LTD,,Micro,,2100062600,,S8 9BG,"1,344.00",
MHCLG,PINS,18/07/2018,NSI Fees & Expenses,NSI Expenses Planning,4 PLANNING DELIVERY LTD,,Micro,,2100062600,,S8 9BG,274.33,
MHCLG,PINS,18/07/2018,NSI Fees & Expenses,NSI Fees Planning,EGGLETON PLANNING AND DESIGN,,Micro,,2100062525,,HG4 2QF,"1,344.00",
MHCLG,PINS,18/07/2018,NSI Fees & Expenses,NSI Expenses Planning,EGGLETON PLANNING AND DESIGN,,Micro,,2100062525,,HG4 2QF,134.10,
MHCLG,PINS,18/07/2018,NSI Fees & Expenses,NSI Fees Planning,GARY DEANE ASSOCIATES LIMITED,,Micro,,2100062530,,M33 6RG,"2,016.00",
MHCLG,PINS,18/07/2018,NSI Fees & Expenses,NSI Expenses Planning,GARY DEANE ASSOCIATES LIMITED,,Micro,,2100062530,,M33 6RG,232.20,
MHCLG,PINS,18/07/2018,NSI Fees & Expenses,NSI Fees Planning,H J L PLANNING,,Micro,,2100062527,,CM3 1HZ,"1,260.00",
MHCLG,PINS,18/07/2018,NSI Fees & Expenses,NSI Expenses Planning,H J L PLANNING,,Micro,,2100062527,,CM3 1HZ,55.59,
MHCLG,PINS,18/07/2018,Technical Aids for the disabled,Human Resources,HEALTH  MANAGEMENT LTD,,Medium,,5106237890,Health Managemtn 2018/19,BN8 5NN,755.40,
MHCLG,PINS,19/07/2018,Agency Staff,Planning Casework Operations,REED SPECIALIST RECRUITMENT LTD,,Large,,5106237927,CLASSIC CASEWORK - CM,SW20 0BA,566.93,
MHCLG,PINS,19/07/2018,Courier Services,Estates,PARCELFORCE WORLDWIDE,,Large,,5106237901,Courier service,MK7 8LE,"5,933.93",
MHCLG,PINS,19/07/2018,Courier Services,Estates,ROYAL MAIL,,Large,,5106237932,Outgoing post,S49 1HQ,"2,863.96",
MHCLG,PINS,19/07/2018,IT SUPPORT,ICT Digital Services,AIIMI LTD,,Medium,,5106237858,Horizon transition to Azure Cloud -,MK9 1JL,"1,260.00",
MHCLG,PINS,19/07/2018,IT SUPPORT,ICT Digital Services,METHODS PROFESSIONAL SERVICES,,Small,,5106237926,PM Contract,EC1A 4EN,"22,200.00",
MHCLG,PINS,19/07/2018,NSI Fees & Expenses,NSI Fees Planning,ANDREW DALE,,Not assigned,,2100062602,,DE23 8DP,"2,065.00",
MHCLG,PINS,19/07/2018,NSI Fees & Expenses,NSI Expenses Planning,ANDREW DALE,,Not assigned,,2100062602,,DE23 8DP,368.21,
MHCLG,PINS,19/07/2018,NSI Fees & Expenses,NSI Fees Planning,GRESTY LAND AGENCY LTD,,Micro,,2100062601,,PE9 4EF,"1,400.00",
MHCLG,PINS,19/07/2018,NSI Fees & Expenses,NSI Expenses Planning,GRESTY LAND AGENCY LTD,,Micro,,2100062601,,PE9 4EF,117.15,
MHCLG,PINS,19/07/2018,TSOL Adverse Costs,"Policy, Knowledge & Quality",GOVERNMENT LEGAL DEPARTMENT,,Public Bodies,,2100062653,,WC2B 4TS,"20,000.00",
MHCLG,PINS,20/07/2018,Agency Staff,"Finance, Commercial & Performance",REED SPECIALIST RECRUITMENT LTD,,Large,,5106237193,EO For Finance,SW20 0BA,907.20,
MHCLG,PINS,20/07/2018,Agency Staff,"Finance, Commercial & Performance",REED SPECIALIST RECRUITMENT LTD,,Large,,5106237665,EO For Finance,SW20 0BA,789.53,
MHCLG,PINS,20/07/2018,Agency Staff,"Finance, Commercial & Performance",REED SPECIALIST RECRUITMENT LTD,,Large,,5106237853,EO For Finance,SW20 0BA,940.90,
MHCLG,PINS,20/07/2018,Courier Services,Estates,ROYAL MAIL,,Large,,5106237974,Outgoing post,S49 1HQ,"1,490.14",
MHCLG,PINS,20/07/2018,Cycle to Work Scheme,Finance accounting adjustments,EDENRED (UK GROUP) LTD,,Large,,2100062706,,SW1V 2RS,"2,549.22",
MHCLG,PINS,20/07/2018,IT - Software Maintenance,ICT Digital Services,SPECIALIST COMPUTER CENTRES LTD,,Large,,5106237962,Sophos Endpoint Protection,B11 2LE,"4,683.00",
MHCLG,PINS,20/07/2018,NSI Fees & Expenses,NSI Fees Planning,CHEC PLANNING LTD,,Micro,,2100062708,,CB6 3PG,"1,680.00",
MHCLG,PINS,20/07/2018,NSI Fees & Expenses,NSI Expenses Planning,CHEC PLANNING LTD,,Micro,,2100062708,,CB6 3PG,88.38,
MHCLG,PINS,20/07/2018,NSI Fees & Expenses,NSI Fees Planning,JDA DEVELOPMENT & PLANNING SERVICE,,Micro,,2100062655,,TA14 6PT,"1,400.00",
MHCLG,PINS,20/07/2018,NSI Fees & Expenses,NSI Expenses Planning,JDA DEVELOPMENT & PLANNING SERVICE,,Micro,,2100062655,,TA14 6PT,393.44,
MHCLG,PINS,20/07/2018,NSI Fees & Expenses,NSI Fees Planning,KIM BENNETT PLANNING SERVICES,,Micro,,2100062704,,CT2 7ET,"1,120.00",
MHCLG,PINS,20/07/2018,NSI Fees & Expenses,NSI Expenses Planning,KIM BENNETT PLANNING SERVICES,,Micro,,2100062704,,CT2 7ET,58.65,
MHCLG,PINS,20/07/2018,NSI Fees & Expenses,NSI Fees Planning,LEIGH & GLENNIE LTD,,Micro,,2100062703,,SL5 9EA,"2,016.00",
MHCLG,PINS,20/07/2018,NSI Fees & Expenses,NSI Expenses Planning,LEIGH & GLENNIE LTD,,Micro,,2100062703,,SL5 9EA,78.48,
MHCLG,PINS,20/07/2018,NSI Fees & Expenses,NSI Fees Planning,MARTIN ANDREWS PLANNING CONSULTANCY,,Micro,,2100062656,,BH15 1HH,"2,184.00",
MHCLG,PINS,20/07/2018,NSI Fees & Expenses,NSI Expenses Planning,MARTIN ANDREWS PLANNING CONSULTANCY,,Micro,,2100062656,,BH15 1HH,247.40,
MHCLG,PINS,23/07/2018,Agency Staff,"Finance, Commercial & Performance",REED SPECIALIST RECRUITMENT LTD,,Large,,5106237662,EO For Finance,SW20 0BA,599.24,
MHCLG,PINS,23/07/2018,IT SUPPORT,TR Digital Transformation,HAYS SPECIALIST RECRUITMENT LTD,,Large,,5106237800,IT Business Analyst Resource,NW1 2AF,"3,197.28",
MHCLG,PINS,23/07/2018,IT SUPPORT,TR Digital Transformation,HAYS SPECIALIST RECRUITMENT LTD,,Large,,5106237851,Commercial Digital Category Mgr,NW1 2AF,"3,147.55",
MHCLG,PINS,24/07/2018,Advertising,ROW,TMP (UK) LIMITED,,Large,,5106238074,Statutory Advertising - ROW,W1T 7RQ,896.34,
MHCLG,PINS,24/07/2018,Agency Staff,TR Digital Transformation,REED SPECIALIST RECRUITMENT LTD,,Large,,5106238044,Build Suport,SW20 0BA,"1,012.96",
MHCLG,PINS,24/07/2018,Agency Staff,Planning Casework Operations,REED SPECIALIST RECRUITMENT LTD,,Large,,5106238045,CLASSIC CASEWORK - ES,SW20 0BA,642.60,
MHCLG,PINS,24/07/2018,Agency Staff,Planning Casework Operations,REED SPECIALIST RECRUITMENT LTD,,Large,,5106238046,Agency AO JM,SW20 0BA,335.89,
MHCLG,PINS,24/07/2018,Agency Staff,Planning Casework Operations,REED SPECIALIST RECRUITMENT LTD,,Large,,5106238051,CLASSIC CASEWORK - KR,SW20 0BA,651.78,
MHCLG,PINS,24/07/2018,Agency Staff,Enforcements,REED SPECIALIST RECRUITMENT LTD,,Large,,5106238052,Agency Staff RT,SW20 0BA,539.50,
MHCLG,PINS,24/07/2018,Agency Staff,Planning Casework Operations,REED SPECIALIST RECRUITMENT LTD,,Large,,5106238055,CLASSIC CASEWORK - CM,SW20 0BA,685.80,
MHCLG,PINS,24/07/2018,Communication Telecom Costs,ICT Digital Services,BT PAYMENT SERVICE LIMITED,,Large,,5106238072,Charges excluding VAT,DH98 1BT,40.00,
MHCLG,PINS,24/07/2018,Communication Telecom Costs,ICT Digital Services,BT PAYMENT SERVICE LIMITED,,Large,,5106238072,Line rental & services for ADSL,DH98 1BT,294.12,
MHCLG,PINS,24/07/2018,Intangible Software Acquisition Cost,LKD Project Horizon,KIER MANAGEMENT CONSULTING LTD,,Large,,5106238073,Contract variation for DNS,M61 0QE,"1,400.40",
MHCLG,PINS,24/07/2018,IT SUPPORT,ICT Digital Services,AGILE SOLUTIONS LTD,,Large,,5106238061,GDPR Practitioner,G2 2NR,"1,110.00",
MHCLG,PINS,24/07/2018,IT SUPPORT,TR Digital Transformation,AIIMI LTD,,Medium,,5106237860,Horizon Stability Patching Variation 2,MK9 1JL,630.00,
MHCLG,PINS,24/07/2018,IT SUPPORT,TR Digital Transformation,HAYS SPECIALIST RECRUITMENT LTD,,Large,,5106237850,Commercial Digital Category Mgr,NW1 2AF,"3,497.28",
MHCLG,PINS,24/07/2018,IT SUPPORT,TR Digital Transformation,HAYS SPECIALIST RECRUITMENT LTD,,Large,,5106237961,IT Business Analyst Resource,NW1 2AF,"3,197.28",
MHCLG,PINS,24/07/2018,IT SUPPORT,TR Organisational Agility,PA CONSULTING SERVICES LIMITED,,Large,,5106238062,OD&D Discovery,SW1W 9SR,"80,928.00",
MHCLG,PINS,24/07/2018,IT SUPPORT,TR Organisational Agility,PA CONSULTING SERVICES LIMITED,,Large,,5106238062,OD&D Discovery ,SW1W 9SR,"10,387.20",
MHCLG,PINS,24/07/2018,IT SUPPORT,ICT Digital Services,THIRTY FOUR FEET LTD,,Micro,,5106238040,IT tester services - contract extension,NP15 1QB,"2,100.00",
MHCLG,PINS,24/07/2018,Legal Fees,Wales Director,GOVERNMENT LEGAL DEPT,,Public Bodies,,5106238060,Legal Fees(2017-18),WC2B 4TS,"3,561.48",
MHCLG,PINS,24/07/2018,NSI Fees & Expenses,NSI Fees Planning,DESIGN 2,,Micro,,2100062797,,PO20 0HX,"1,176.00",
MHCLG,PINS,24/07/2018,NSI Fees & Expenses,NSI Expenses Planning,DESIGN 2,,Micro,,2100062797,,PO20 0HX,107.10,
MHCLG,PINS,24/07/2018,NSI Fees & Expenses,NSI Fees Planning,LJE PLANNING LTD,,Data Not Provided,,2100062796,,SO22 6RT,"2,856.00",
MHCLG,PINS,24/07/2018,NSI Fees & Expenses,NSI Expenses Planning,LJE PLANNING LTD,,Data Not Provided,,2100062796,,SO22 6RT,161.04,
MHCLG,PINS,24/07/2018,NSI Fees & Expenses,NSI Fees Planning,MARTIN ANDREWS PLANNING CONSULTANCY,,Micro,,2100062798,,BH15 1HH,"2,016.00",
MHCLG,PINS,24/07/2018,NSI Fees & Expenses,NSI Expenses Planning,MARTIN ANDREWS PLANNING CONSULTANCY,,Micro,,2100062798,,BH15 1HH,104.52,
MHCLG,PINS,24/07/2018,NSI Fees & Expenses,NSI Fees Planning,S P PLANNING,,Small,,2100062795,,EC1M 5QA,"1,344.00",
MHCLG,PINS,24/07/2018,NSI Fees & Expenses,NSI Expenses Planning,S P PLANNING,,Small,,2100062795,,EC1M 5QA,92.88,
MHCLG,PINS,24/07/2018,Training,Inspector Costs,INST PUBLIC RIGHTS WAY MANGMT LTD,,Micro,,5106237848,IPROW Training,CA11 1BL,760.00,
MHCLG,PINS,25/07/2018,Advertising,Wales Director,TMP (UK) LIMITED,,Large,,5106238084,Statutory Advertising - Wales 18-19,W1T 7RQ,"2,718.13",
MHCLG,PINS,25/07/2018,Advertising,Wales Director,TMP (UK) LIMITED,,Large,,5106238085,Statutory Advertising - Wales 18-19,W1T 7RQ,"2,867.15",
MHCLG,PINS,25/07/2018,Agency Staff,Transformation Prog Management Office,REED SPECIALIST RECRUITMENT LTD,,Large,,5106238042,Programme Support role SB,SW20 0BA,"1,030.81",
MHCLG,PINS,25/07/2018,Agency Staff,Transformation Prog Management Office,REED SPECIALIST RECRUITMENT LTD,,Large,,5106238043,Programme Support Role,SW20 0BA,"1,005.36",
MHCLG,PINS,25/07/2018,Agency Staff,Governance & Strategic Support,REED SPECIALIST RECRUITMENT LTD,,Large,,5106238047,Agency Staff DB,SW20 0BA,824.86,
MHCLG,PINS,25/07/2018,Agency Staff,Planning Casework Operations,REED SPECIALIST RECRUITMENT LTD,,Large,,5106238048,Agency AO MR,SW20 0BA,449.11,
MHCLG,PINS,25/07/2018,Agency Staff,Inspector Development & Support Team,REED SPECIALIST RECRUITMENT LTD,,Large,,5106238050,Temp staff for IDST,SW20 0BA,485.83,
MHCLG,PINS,25/07/2018,Agency Staff,TR People,REED SPECIALIST RECRUITMENT LTD,,Large,,5106238053,AO HR ADVICE CW,SW20 0BA,460.43,
MHCLG,PINS,25/07/2018,Agency Staff,TR People,REED SPECIALIST RECRUITMENT LTD,,Large,,5106238054,AO HR GDPR MC,SW20 0BA,380.99,
MHCLG,PINS,25/07/2018,Agency Staff,Planning Casework Operations,REED SPECIALIST RECRUITMENT LTD,,Large,,5106238056,AO AGENCY STAFF EJ,SW20 0BA,364.78,
MHCLG,PINS,25/07/2018,Agency Staff,Planning Casework Operations,REED SPECIALIST RECRUITMENT LTD,,Large,,5106238057,AO AGENCY STAFF JJF,SW20 0BA,380.99,
MHCLG,PINS,25/07/2018,Agency Staff,"Policy, Knowledge & Quality",REED SPECIALIST RECRUITMENT LTD,,Large,,5106238083,Agency Staff for Library,SW20 0BA,486.36,
MHCLG,PINS,25/07/2018,NSI Fees & Expenses,NSI Fees Planning,FITZSIMON PLANNING & DEVELOPMENT,,Micro,,2100062824,,CH7 5NL,"1,680.00",
MHCLG,PINS,25/07/2018,TSOL Adverse Costs,"Policy, Knowledge & Quality",GOVERNMENT LEGAL DEPARTMENT,,Public Bodies,,2100062827,,WC2B 4TS,"4,500.00",
MHCLG,PINS,26/07/2018,IT SUPPORT,ICT Digital Services,AGILE SOLUTIONS LTD,,Large,,2100062904,Data Mapping,G2 2NR,"-8,250.00",
MHCLG,PINS,26/07/2018,IT SUPPORT,ICT Digital Services,AGILE SOLUTIONS LTD,,Large,,2100062904,GDPR Consultant,G2 2NR,"-8,250.00",
MHCLG,PINS,26/07/2018,IT SUPPORT,ICT Digital Services,AGILE SOLUTIONS LTD,,Large,,2100062904,GDPR Practitioner,G2 2NR,"-3,330.00",
MHCLG,PINS,26/07/2018,IT SUPPORT,ICT Digital Services,AGILE SOLUTIONS LTD,,Large,,5106237366,Data Mapping,G2 2NR,"8,250.00",
MHCLG,PINS,26/07/2018,IT SUPPORT,ICT Digital Services,AGILE SOLUTIONS LTD,,Large,,5106237366,GDPR Consultant,G2 2NR,"8,250.00",
MHCLG,PINS,26/07/2018,IT SUPPORT,ICT Digital Services,AGILE SOLUTIONS LTD,,Large,,5106237366,GDPR Practitioner,G2 2NR,"3,330.00",
MHCLG,PINS,26/07/2018,Legal Fees,Wales Director,GOVERNMENT LEGAL DEPT,,Public Bodies,,2100062860,,WC2B 4TS,"2,535.00",
MHCLG,PINS,26/07/2018,Office Supplies,Business Support,BANNER BUSINESS SUPPLIES LTD,,Large,,5106238120,Office Stationery 18-19,S9 1XU,199.12,
MHCLG,PINS,26/07/2018,Office Supplies,Business Support,BANNER BUSINESS SUPPLIES LTD,,Large,,5106238120,Paper 18-19,S9 1XU,140.11,
MHCLG,PINS,26/07/2018,Software Licences,TR Digital Transformation,PTFS EUROPE LTD,,Small,,5106238110,Library Systems Ext,W1S 1DX,"8,304.00",
MHCLG,PINS,27/07/2018,EXP � PURCHASE OF GOODS /SERVICES R & D,TR Transformation,HAYS SPECIALIST RECRUITMENT LTD,,Large,,5106238141,ODT Benefits Analyst Resource,NW1 2AF,"2,983.75",
MHCLG,PINS,27/07/2018,IT SUPPORT,TR Organisational Agility,ALLEN LANE LTD,,Medium,,5106238109,Finance Planning Business Partner resour,SW1Y 6RJ,"10,283.04",
MHCLG,PINS,27/07/2018,NSI Fees & Expenses,NSI Fees Planning,CHRIS TIVEY ASSOCIATES,,Micro,,2100062895,,BA4 9DN,"1,680.00",
MHCLG,PINS,27/07/2018,NSI Fees & Expenses,NSI Expenses Planning,CHRIS TIVEY ASSOCIATES,,Micro,,2100062895,,BA4 9DN,84.42,
MHCLG,PINS,27/07/2018,NSI Fees & Expenses,NSI Fees Planning,JDA DEVELOPMENT & PLANNING SERVICE,,Micro,,2100062898,,TA14 6PT,"1,400.00",
MHCLG,PINS,27/07/2018,NSI Fees & Expenses,NSI Expenses Planning,JDA DEVELOPMENT & PLANNING SERVICE,,Micro,,2100062898,,TA14 6PT,113.10,
MHCLG,PINS,27/07/2018,Specialist Technical Support,TR Digital Transformation,HAYS SPECIALIST RECRUITMENT LTD,,Large,,5106238142,ITMP PDM ,NW1 2AF,"4,660.50",
MHCLG,PINS,27/07/2018,Web Services,ICT Digital Services,HELPFUL TECHNOLOGY LTD,,Micro,,5106238144,Hosting and maintenance of PINS intranet,BR3 4EY,"2,520.00",
MHCLG,PINS,30/07/2018,IT SUPPORT,TR Digital Transformation,AGILE SOLUTIONS LTD,,Large,,5106238170,GDPR Consultant,G2 2NR,"6,000.00",
MHCLG,PINS,30/07/2018,IT SUPPORT,ICT Digital Services,AGILE SOLUTIONS LTD,,Large,,5106238170,Data Mapping,G2 2NR,"8,250.00",
MHCLG,PINS,30/07/2018,IT SUPPORT,ICT Digital Services,AGILE SOLUTIONS LTD,,Large,,5106238170,GDPR ,G2 2NR,"2,250.00",
MHCLG,PINS,30/07/2018,IT SUPPORT,ICT Digital Services,AGILE SOLUTIONS LTD,,Large,,5106238170,GDPR Practitioner,G2 2NR,"3,330.00",
MHCLG,PINS,30/07/2018,TSOL Adverse Costs,"Policy, Knowledge & Quality",GOVERNMENT LEGAL DEPARTMENT,,Public Bodies,,2100062924,,WC2B 4TS,"14,559.20",
MHCLG,PINS,30/07/2018,TSOL Adverse Costs,"Policy, Knowledge & Quality",GOVERNMENT LEGAL DEPARTMENT,,Public Bodies,,2100062925,,WC2B 4TS,"8,000.00",
MHCLG,PINS,31/07/2018,Agency Staff,TR People,HAYS SPECIALIST RECRUITMENT LTD,,Large,,5106238203,HR BP - SL,NW1 2AF,"3,310.92",
MHCLG,PINS,31/07/2018,Agency Staff,"Finance, Commercial & Performance",REED SPECIALIST RECRUITMENT LTD,,Large,,5106236979,EO For Finance,SW20 0BA,345.78,
MHCLG,PINS,31/07/2018,Agency Staff,Transformation Prog Management Office,REED SPECIALIST RECRUITMENT LTD,,Large,,5106237367,Programme Support role SB,SW20 0BA,916.27,
MHCLG,PINS,31/07/2018,Agency Staff,Transformation Prog Management Office,REED SPECIALIST RECRUITMENT LTD,,Large,,5106238191,Programme Support Role,SW20 0BA,903.55,
MHCLG,PINS,31/07/2018,Agency Staff,TR Digital Transformation,REED SPECIALIST RECRUITMENT LTD,,Large,,5106238192,Build Suport,SW20 0BA,999.44,
MHCLG,PINS,31/07/2018,Agency Staff,"Finance, Commercial & Performance",REED SPECIALIST RECRUITMENT LTD,,Large,,5106238193,EO For Finance,SW20 0BA,851.57,
MHCLG,PINS,31/07/2018,Agency Staff,Governance & Strategic Support,REED SPECIALIST RECRUITMENT LTD,,Large,,5106238198,Agency Staff DB,SW20 0BA,907.33,
MHCLG,PINS,31/07/2018,Agency Staff,Enforcements,REED SPECIALIST RECRUITMENT LTD,,Large,,5106238199,Agency Staff RT,SW20 0BA,676.66,
MHCLG,PINS,31/07/2018,Agency Staff,TR People,REED SPECIALIST RECRUITMENT LTD,,Large,,5106238200,AO HR GDPR MC,SW20 0BA,599.84,
MHCLG,PINS,31/07/2018,Agency Staff,TR People,REED SPECIALIST RECRUITMENT LTD,,Large,,5106238201,AO HR ADVICE CW,SW20 0BA,573.65,
MHCLG,PINS,31/07/2018,Agency Staff,"Policy, Knowledge & Quality",REED SPECIALIST RECRUITMENT LTD,,Large,,5106238206,Agency Staff for Library,SW20 0BA,502.57,
MHCLG,PINS,31/07/2018,IT SUPPORT,TR Digital Transformation,HAYS SPECIALIST RECRUITMENT LTD,,Large,,5106238139,IT Business Analyst Resource,NW1 2AF,"3,197.28",
MHCLG,PINS,31/07/2018,IT SUPPORT,ICT Digital Services,THIRTY FOUR FEET LTD,,Micro,,5106238190,IT tester services,NP15 1QB,"1,890.00",
MHCLG,PINS,31/07/2018,NSI Fees & Expenses,NSI Fees Planning,EGGLETON PLANNING AND DESIGN,,Micro,,2100062982,,HG4 2QF,"1,344.00",
MHCLG,PINS,31/07/2018,NSI Fees & Expenses,NSI Expenses Planning,EGGLETON PLANNING AND DESIGN,,Micro,,2100062982,,HG4 2QF,135.18,
MHCLG,PINS,31/07/2018,NSI Fees & Expenses,NSI Fees Planning,H J L PLANNING,,Micro,,2100062978,,CM3 1HZ,"1,400.00",
MHCLG,PINS,31/07/2018,NSI Fees & Expenses,NSI Expenses Planning,H J L PLANNING,,Micro,,2100062978,,CM3 1HZ,41.40,
